[Event "World Junior U20 Girls 2018"]
[Site "Gebze"]
[Date "2018.09.10"]
[Round "6"]
[White "Wafa, Shahenda"]
[Black "Nastase, Andreea-Cristina"]
[Result "1-0"]
[ECO "B96"]
[WhiteElo "2129"]
[BlackElo "1983"]
[Annotator "NA"]
[PlyCount "103"]
[EventDate "2018.09.05"]
[EventType "swiss"]
[EventCountry "TUR"]
[SourceTitle "playchess.com"]
[Source "ChessBase"]
[SourceQuality "1"]
[TimeControl "40/5400+30:1800+30"]

1. e4 {[%emt 0:00:30]} c5 {[%emt 0:00:30]} 2. Nf3 {[%emt 0:00:30]} d6 {[%emt 0:00:30]} 3. d4 {[%emt 0:00:30]} cxd4 {[%emt 0:00:00]} 4. Nxd4 {[%emt 0:00:00]} Nf6 {[%emt 0:00:00]} 5. Nc3 {[%emt 0:00:00]} a6 {[%emt 0:00:00]} 6. Bg5 {[%emt 0:00:00]} e6 {[%emt 0:00:00]} 7. f4 {[%emt 0:00:00]} Nbd7 {[%emt 0:00:00]} 8. Qf3 {[%emt 0:00:30]} Qc7 {[%emt 0:00:00]} 9. g4 {[%emt 0:00:00] B96: Sicilian Najdorf: 6 Bg5 e6 7 f4, lines other than 7...Qb6 and 7...Be7} (9. O-O-O b5 10. e5 Bb7 11. Qh3 dxe5 12. Nxe6 fxe6 13. Qxe6+ Be7 14. Bxb5 axb5 15. Nxb5 Qc6 16. Nd6+ Kd8 17. fxe5 Kc7 18. Qxe7 Rxa2 19. exf6 Ra1+ 20. Kd2 Qd5+ 21. Kc3 Qa5+ 22. Kd3 Qd5+ 23. Kc3 Qa5+ 24. Kd3 {½-½ (24) Kulaots,K (2573)-Korobov,A (2652) Tegernsee 2017}) 9... b5 {[%emt 0:01:30]} 10. Bxf6 {[%emt 0:00:00]} gxf6 {[%emt 0:02:30]} 11. a3 {[%emt 0:02:30]} Rb8 {[%emt 0:03:30]} 12. Nb3 $146 {[%emt 0:08:30] [#]} ({Predecessor:} 12. Be2 b4 13. axb4 Rxb4 14. Nb3 Nc5 15. Nxc5 Qxc5 16. O-O-O Bb7 17. Rhg1 {½-½ (39) Schmelz,T (2411)-Bernardino,Z (2366) ICCF email 2000}) 12... Nb6 {[%emt 1:27:30]} (12... h5 $1 $17 {[%mdl 512]}) 13. Nd4 {[%emt 0:10:30]} Nd7 {[%emt 0:00:30]} 14. Nb3 {[%emt 0:00:30]} Nb6 {[%emt 0:00:30]} 15. f5 {[%emt 0:00:00]} e5 {[%emt 0:00:00]} (15... Na4 $15 {keeps the upper hand.} 16. O-O-O Nxc3 17. bxc3 d5 18. exd5 Bxa3+ 19. Kb1 O-O) 16. h4 {[%emt 0:01:00]} Bb7 {[%emt 0:00:00]} 17. O-O-O {[%emt 0:03:30]} Rc8 {[%emt 0:00:00]} 18. Rh2 {[%emt 0:04:30]} Be7 {[%emt 0:00:00]} 19. g5 {[%emt 0:17:30]} fxg5 {[%emt 0:00:00] [#]} 20. f6 $1 {[%emt 0:01:30]} g4 {[%emt 0:00:00]} 21. Qxg4 {[%emt 0:05:30]} Bxf6 {[%emt 0:00:00]} 22. Bxb5+ {[%emt 0:00:30]} Ke7 {[%emt 0:00:00]} 23. Bd3 {[%emt 0:02:30]} Qd7 {[%emt 0:00:00]} 24. Qh5 {[%emt 0:06:30]} Rcg8 {[%emt 0:00:00]} 25. Qe2 {[%emt 0:02:30]} Na4 $18 {[%emt 0:00:00]} (25... Qg4 $16) 26. Nxa4 {[%emt 0:02:30]} Qxa4 {[%emt 0:00:00]} 27. Rf1 {[%emt 0:02:30]} h5 {[%emt 0:00:00]} 28. Rhf2 {[%emt 0:01:30]} Rg6 {[%emt 0:00:00]} 29. Rf5 {[%emt 0:00:30]} Bc8 {[%emt 0:00:00]} 30. R5f2 {[%emt 0:04:30]} Bg4 {[%emt 0:00:00]} 31. Qe3 {[%emt 0:00:30]} Be6 {[%emt 0:00:00]} 32. Rxf6 {[%emt 0:00:30]} Rxf6 {[%emt 0:00:00]} 33. Rxf6 {[%emt 0:00:30]} Bxb3 {[%emt 0:00:00]} 34. Qg5 {[%emt 0:00:30]} Rc8 {[%emt 0:00:00]} 35. Rf2+ {[%emt 0:08:07]} Kd7 {[%emt 0:00:00]} 36. Qxh5 {[%emt 0:00:13]} Be6 {[%emt 0:00:00]} 37. Qe2 {[%emt 0:00:18]} Rg8 {[%emt 0:00:00]} 38. Rf1 {[%emt 0:00:29]} Qd4 {[%emt 0:00:43]} 39. Bxa6 {[%emt 0:01:11]} Rg1 {[%emt 0:00:38]} 40. Bd3 {[%emt 0:01:37]} Bg4 {[%emt 0:01:26]} 41. Qe1 {[%emt 0:30:23]} Rxf1 {[%emt 0:31:03]} 42. Qxf1 {[%emt 0:00:00]} Qe3+ {[%emt 0:00:00]} 43. Kb1 {[%emt 0:00:00]} Be6 {[%emt 0:00:00]} 44. Qh1 {[%emt 0:00:00]} Qh6 {[%emt 0:00:00]} 45. a4 {[%emt 0:00:00]} Kc7 {[%emt 0:00:00]} 46. Qe1 {[%emt 0:00:00]} Qf4 {[%emt 0:00:00]} 47. a5 {[%emt 0:00:00]} d5 {[%emt 0:00:00]} 48. a6 {[%emt 0:00:00]} dxe4 {[%emt 0:00:00]} 49. Bxe4 {[%emt 0:00:00]} Kb6 {[%emt 0:00:00]} 50. Bd3 {[%emt 0:00:00]} f6 {[%emt 0:00:00]} 51. Qg1+ {[%emt 0:00:00]} Kc7 {[%emt 0:00:00]} 52. Qc5+ {[%emt 0:00:00]} 1-0

[Event "World Junior U20 Girls 2018"]
[Site "Gebze"]
[Date "2018.09.10"]
[Round "6"]
[White "Serikbay, Assel"]
[Black "Kyrkjebo, Hanna B"]
[Result "1/2-1/2"]
[ECO "E06"]
[WhiteElo "2125"]
[BlackElo "1947"]
[Annotator "NA"]
[PlyCount "128"]
[EventDate "2018.09.05"]
[EventType "swiss"]
[EventCountry "TUR"]
[SourceTitle "playchess.com"]
[Source "ChessBase"]
[SourceQuality "1"]
[TimeControl "40/5400+30:1800+30"]

1. d4 {[%emt 0:00:30]} Nf6 {[%emt 0:00:30]} 2. c4 {[%emt 0:00:30]} e6 {[%emt 0:00:30]} 3. g3 {[%emt 0:00:00]} d5 {[%emt 0:04:30]} 4. Nf3 {[%emt 0:01:00]} c6 {[%emt 0:00:30]} 5. Bg2 {[%emt 0:00:00]} Be7 {[%emt 0:03:30]} 6. O-O {[%emt 0:00:00]} O-O {[%emt 0:00:30]} 7. Qc2 {[%emt 0:00:30]} b6 {[%emt 0:06:30]} 8. Nbd2 {[%emt 0:01:30]} Ba6 {[%emt 0:03:30] LiveBook: 71 Games E06: Closed Catalan: Early deviations} (8... Bb7 9. b3 a5 10. Bb2 Na6 11. Rfd1 Rc8 12. Rac1 h6 13. Qb1 Rc7 14. Ne5 Nd7 15. Ndf3 Nxe5 16. Nxe5 Bd6 17. e4 {½-½ (45) Yu,Y (2751)-Sargissian,G (2672) Riadh 2017}) 9. Ne5 {[%emt 0:04:30]} Nfd7 {[%emt 0:04:30]} 10. Nd3 {[%emt 0:02:30]} Nf6 {[%emt 0:08:30]} 11. Rd1 {[%emt 0:01:30]} Nbd7 {[%emt 0:05:30]} 12. e4 {[%emt 0:02:30]} Rc8 {[%emt 0:08:30]} 13. e5 {[%emt 0:04:30]} Ne8 {[%emt 0:05:30] [#]} 14. b4 $146 {[%emt 0:22:30]} ({Predecessor:} 14. Nf4 Nc7 15. b3 c5 16. dxc5 Bxc5 {1-0 (36) Brunello,S (2533)-Tristan,L (2412) Puerto Madryn 2009}) 14... Nc7 {[%emt 0:05:30]} 15. c5 {[%emt 0:12:30]} bxc5 {[%emt 0:02:30]} 16. bxc5 {[%emt 0:02:30]} Rb8 {[%emt 0:02:30]} 17. Nb3 {[%emt 0:01:30]} Qc8 {[%emt 0:08:30]} 18. Na5 {[%emt 0:04:30]} Bb7 {[%emt 0:04:30]} (18... Ne8 $142) 19. Bf1 {[%emt 0:05:30]} Ne8 {[%emt 0:05:57]} 20. Nb4 {[%emt 0:04:30]} Bd8 {[%emt 0:03:55]} 21. Nxb7 {[%emt 0:00:30]} Qxb7 {[%emt 0:00:43]} 22. Na6 {[%emt 0:00:30]} Rc8 {[%emt 0:01:54]} 23. Rb1 {[%emt 0:00:30]} Qa8 {[%emt 0:00:35]} 24. Qb3 $18 {[%emt 0:06:30]} Nc7 {[%emt 0:04:38]} 25. Qb7 {[%emt 0:02:33]} Qxb7 {[%emt 0:05:07]} 26. Rxb7 {[%emt 0:00:05]} Nxa6 {[%emt 0:00:18]} 27. Bxa6 {[%emt 0:00:02]} Rc7 {[%emt 0:00:00]} 28. Rb3 {[%emt 0:01:22]} Be7 {[%emt 0:01:14]} 29. Bd2 {[%emt 0:00:18]} Nb8 {[%emt 0:01:56]} 30. Bb7 {[%emt 0:00:30]} f6 {[%emt 0:00:56]} 31. Ba5 {[%emt 0:01:11]} Rd7 {[%emt 0:00:18]} 32. Rdb1 {[%emt 0:01:58]} fxe5 {[%emt 0:01:10]} 33. Ba8 {[%emt 0:00:47]} Bd8 {[%emt 0:00:38]} 34. Bd2 {[%emt 0:08:25]} Bc7 {[%emt 0:00:21]} 35. dxe5 {[%emt 0:04:47]} Bxe5 {[%emt 0:00:23]} 36. Re3 {[%emt 0:01:52]} Bd4 {[%emt 0:00:43]} 37. Rxe6 {[%emt 0:01:06]} Bxf2+ {[%emt 0:00:51]} 38. Kh1 {[%emt 0:00:25]} Bxc5 {[%emt 0:00:57]} 39. Bf4 {[%emt 0:00:13]} Bb6 {[%emt 0:00:06]} 40. Bxb8 {[%emt 0:00:00]} Rxb8 {[%emt 0:00:00]} 41. Bxc6 {[%emt 0:01:56]} Rdd8 {[%emt 0:05:50]} 42. Rbe1 {[%emt 0:10:30]} Rbc8 {[%emt 0:04:30]} 43. Re8+ {[%emt 0:01:30]} Rxe8 {[%emt 0:00:30]} 44. Rxe8+ {[%emt 0:00:30]} Rxe8 {[%emt 0:00:30]} 45. Bxe8 {[%emt 0:00:00]} Kf8 {[%emt 0:00:30]} 46. Bc6 {[%emt 0:00:00]} d4 {[%emt 0:00:00]} 47. Be4 {[%emt 0:01:30]} h6 {[%emt 0:01:00]} 48. Kg2 {[%emt 0:00:30]} Ke7 {[%emt 0:00:00]} 49. Kf3 {[%emt 0:00:00]} Kf6 {[%emt 0:03:37]} 50. Bd3 {[%emt 0:00:00]} Ke5 {[%emt 0:02:26]} 51. Bc4 {[%emt 0:02:51]} Bd8 {[%emt 0:01:46]} 52. Bb3 {[%emt 0:01:39]} Bg5 {[%emt 0:02:55]} 53. Bc4 {[%emt 0:00:07]} Be3 {[%emt 0:00:42]} 54. a4 {[%emt 0:00:36]} a5 {[%emt 0:02:17]} 55. g4 {[%emt 0:01:56]} Kf6 {[%emt 0:02:38]} 56. h4 {[%emt 0:02:38]} g6 {[%emt 0:01:44]} 57. Bd3 {[%emt 0:02:17]} g5 {[%emt 0:01:42]} 58. hxg5+ {[%emt 0:02:01]} hxg5 {[%emt 0:00:46]} 59. Ke4 {[%emt 0:00:08]} Ke6 {[%emt 0:00:05]} 60. Bc4+ {[%emt 0:00:20]} Kd6 {[%emt 0:00:12]} 61. Bb5 {[%emt 0:00:30]} Kc5 {[%emt 0:00:35]} 62. Kd3 {[%emt 0:00:24]} Kb4 {[%emt 0:01:19]} 63. Bd7 {[%emt 0:00:10]} Kc5 {[%emt 0:01:46]} 64. Bb5 {[%emt 0:00:06]} Kd5 {[%emt 0:01:45]} 1/2-1/2

[Event "World Junior U20 Girls 2018"]
[Site "Gebze"]
[Date "2018.09.10"]
[Round "6"]
[White "Ozbay, Ece"]
[Black "Hojjatova, Aydan"]
[Result "0-1"]
[ECO "C08"]
[WhiteElo "2114"]
[BlackElo "2356"]
[Annotator "NA"]
[PlyCount "122"]
[EventDate "2018.09.05"]
[EventType "swiss"]
[EventCountry "TUR"]
[SourceTitle "playchess.com"]
[Source "ChessBase"]
[SourceQuality "1"]
[TimeControl "40/5400+30:1800+30"]

1. e4 {[%emt 0:00:30]} e6 {[%emt 0:00:30]} 2. d4 {[%emt 0:00:30]} d5 {[%emt 0:00:30]} 3. Nd2 {[%emt 0:00:30]} c5 {[%emt 0:00:00]} 4. exd5 {[%emt 0:00:00]} exd5 {[%emt 0:00:00]} 5. Ngf3 {[%emt 0:00:00]} a6 {[%emt 0:00:00]} 6. dxc5 {[%emt 0:03:30]} Bxc5 {[%emt 0:00:00]} 7. Nb3 {[%emt 0:00:30]} Bb6 {[%emt 0:00:30]} 8. Be2 {[%emt 0:02:30] C08: French Tarrasch: 3...c5 4 exd5 exd5 sidelines} (8. Bd3 Qe7+ 9. Be2 Nf6 10. O-O O-O 11. Bg5 h6 12. Bh4 Nc6 13. c3 g5 14. Bg3 Ne4 15. Re1 Qf6 16. Qxd5 Nxg3 17. hxg3 {½-½ (41) Fedorchuk,S (2641)-Gurevich,M (2565) Paris 2017}) 8... Nf6 {[%emt 0:00:00]} 9. O-O {[%emt 0:01:30]} h6 {[%emt 0:00:00]} 10. c3 {[%emt 0:01:30]} O-O {[%emt 0:00:30]} 11. Nbd4 {[%emt 0:00:30]} Nc6 {[%emt 0:01:30]} 12. Be3 {[%emt 0:02:30]} Bc7 $146 {[%emt 0:01:30]} ({Predecessor:} 12... Re8 13. h3 Bd7 14. Re1 Rc8 15. Bd3 Na5 16. Nf5 {½-½ (16) Scholze,R (2035)-Kahn,M (2166) Dresden 2005}) 13. Qc1 {[%emt 0:01:30]} Re8 {[%emt 0:06:30]} 14. Bd3 {[%emt 0:03:30]} Ne4 {[%emt 0:03:30]} 15. Bf4 {[%emt 0:04:30]} Bb6 {[%emt 0:05:30]} 16. Re1 $1 {[%emt 0:18:30]} Qf6 {[%emt 0:08:30]} 17. Be3 {[%emt 0:05:30]} Bc7 {[%emt 0:00:30]} 18. c4 {[%emt 0:10:30]} Ne5 {[%emt 0:17:30]} 19. Qc2 $15 {[%emt 0:04:30]} Ba5 {[%emt 0:14:30]} 20. Nxe5 {[%emt 0:08:30]} Bxe1 {[%emt 0:03:30]} 21. Ndf3 {[%emt 0:04:30]} Bb4 {[%emt 0:02:30]} 22. Bd4 {[%emt 0:01:30]} Qe7 {[%emt 0:08:30]} 23. cxd5 {[%emt 0:04:30]} Nf6 {[%emt 0:02:30]} 24. a3 {[%emt 0:06:50]} Bd6 {[%emt 0:00:30]} 25. Re1 {[%emt 0:00:02]} Qc7 {[%emt 0:02:30]} 26. Qb3 {[%emt 0:12:50]} b5 {[%emt 0:02:32]} 27. a4 {[%emt 0:00:54]} bxa4 {[%emt 0:02:36]} 28. Qxa4 {[%emt 0:00:30]} Bb7 {[%emt 0:00:00]} 29. Bc4 {[%emt 0:00:48]} Bxd5 {[%emt 0:00:58]} 30. Bxd5 {[%emt 0:00:30]} Nxd5 {[%emt 0:00:30]} 31. Qb3 {[%emt 0:00:00]} Nf4 {[%emt 0:01:24]} 32. g3 {[%emt 0:01:25]} Ne6 {[%emt 0:04:54]} 33. Bc3 {[%emt 0:00:21]} Rab8 {[%emt 0:00:41]} 34. Qa4 {[%emt 0:00:39]} Qb7 {[%emt 0:01:20]} 35. Rd1 {[%emt 0:00:27]} Bxe5 {[%emt 0:05:16]} 36. Nxe5 {[%emt 0:00:07]} Ng5 {[%emt 0:00:00]} 37. Rd7 {[%emt 0:00:55]} Qb6 {[%emt 0:03:39]} 38. Qg4 {[%emt 0:00:37]} Qe6 {[%emt 0:02:06]} 39. Qxe6 {[%emt 0:00:30]} Rxe6 {[%emt 0:00:31]} 40. f4 {[%emt 0:00:00]} Ne4 {[%emt 0:00:00]} 41. Bd4 {[%emt 0:05:35]} Rd6 {[%emt 0:01:33]} 42. Rxd6 {[%emt 0:01:30]} Nxd6 {[%emt 0:00:30]} 43. Nc6 {[%emt 0:00:30]} Rb3 {[%emt 0:00:30]} 44. Bc3 {[%emt 0:01:30]} Nc4 {[%emt 0:04:30]} 45. Nd4 {[%emt 0:00:30]} Rb7 {[%emt 0:00:30]} 46. b4 {[%emt 0:00:30]} Nd6 {[%emt 0:05:30]} 47. Be1 {[%emt 0:01:30]} Ne4 {[%emt 0:00:30]} 48. Kf1 {[%emt 0:02:30]} Rd7 {[%emt 0:00:30]} 49. Nb3 {[%emt 0:01:40]} Rd3 {[%emt 0:00:30]} 50. Na5 {[%emt 0:00:28]} f6 {[%emt 0:01:30]} 51. Ke2 {[%emt 0:00:28]} Ra3 {[%emt 0:00:30]} 52. Nc4 {[%emt 0:01:34]} Ra1 {[%emt 0:00:30]} 53. h4 {[%emt 0:02:09]} Kf7 {[%emt 0:00:30]} 54. Ne3 {[%emt 0:00:18]} Ke6 {[%emt 0:00:30]} 55. Nc4 {[%emt 0:00:36]} Rc1 {[%emt 0:01:30]} 56. Ne3 {[%emt 0:00:52]} f5 {[%emt 0:00:30]} 57. h5 {[%emt 0:00:44]} Nf6 {[%emt 0:02:40]} 58. Bd2 {[%emt 0:01:04]} Rc8 {[%emt 0:00:08]} 59. Kf3 {[%emt 0:01:05]} Nxh5 {[%emt 0:00:35]} 60. Be1 {[%emt 0:00:46]} Nf6 {[%emt 0:00:08]} 61. Ke2 {[%emt 0:00:10]} g5 {[%emt 0:00:42]} 0-1

[Event "World Junior U20 Girls 2018"]
[Site "Gebze"]
[Date "2018.09.10"]
[Round "6"]
[White "Dwilewicz, Katarzyna"]
[Black "Altantuya, Boldbaatar"]
[Result "0-1"]
[ECO "B85"]
[WhiteElo "2081"]
[BlackElo "2210"]
[Annotator "NA"]
[PlyCount "78"]
[EventDate "2018.09.05"]
[EventType "swiss"]
[EventCountry "TUR"]
[SourceTitle "playchess.com"]
[Source "ChessBase"]
[SourceQuality "1"]
[TimeControl "40/5400+30:1800+30"]

1. e4 {[%emt 0:00:30]} c5 {[%emt 0:00:30]} 2. Nf3 {[%emt 0:00:00]} e6 {[%emt 0:00:30]} 3. d4 {[%emt 0:00:00]} cxd4 {[%emt 0:00:30]} 4. Nxd4 {[%emt 0:00:30]} Nf6 {[%emt 0:00:00]} 5. Nc3 {[%emt 0:00:30]} d6 {[%emt 0:00:00]} 6. Be2 {[%emt 0:00:00]} a6 {[%emt 0:00:30]} 7. f4 {[%emt 0:01:00]} Nc6 {[%emt 0:02:30]} 8. Be3 {[%emt 0:00:30]} Be7 {[%emt 0:01:30]} 9. O-O {[%emt 0:00:30]} Qc7 {[%emt 0:00:30]} 10. Qe1 {[%emt 0:01:30]} O-O {[%emt 0:02:30]} 11. Qg3 {[%emt 0:02:30]} Kh8 {[%emt 0:04:30]} 12. Kh1 {[%emt 0:01:30]} Bd7 {[%emt 0:00:30]} 13. Rae1 {[%emt 0:02:30]} b5 {[%emt 0:02:30]} 14. a3 {[%emt 0:05:30]} Rab8 {[%emt 0:06:30] LiveBook: 14 Games} 15. Nxc6 {[%emt 0:14:30] B85: Sicilian Scheveningen: 6 Be2 a6, lines with early Be3} (15. e5 dxe5 16. Nxc6 Bxc6 17. fxe5 Ne4 18. Nxe4 Bxe4 19. c3 Rbd8 20. Bh5 Bf5 21. Qf2 Rc8 22. Bb6 Bc5 23. Bxc7 Bxf2 24. Rxf2 Rxc7 {0-1 (73) Forcen Esteban,D (2539)-Cori Tello,J (2549) Sitges 2015}) 15... Bxc6 {[%emt 0:00:30]} 16. Bd3 {[%emt 0:01:30]} b4 {[%emt 0:03:30]} 17. axb4 {[%emt 0:04:30]} Rxb4 {[%emt 0:00:30]} 18. Bc1 {[%emt 0:02:30]} a5 $146 {[%emt 0:28:30]} ({Predecessor:} 18... Qb7 19. Qf3 g6 20. b3 d5 21. exd5 Nxd5 22. Nxd5 Bxd5 {1-0 (63) Bellia,F (2392)-Lava,G (2232) Bratto 2006}) 19. b3 $1 {[%emt 0:06:30]} Ba8 {[%emt 0:15:30]} 20. Bd2 {[%emt 0:08:30]} Rbb8 {[%emt 0:04:30]} 21. Qh3 {[%emt 0:08:30]} d5 {[%emt 0:05:50]} 22. exd5 {[%emt 0:11:30]} exd5 $16 {[%emt 0:00:12]} 23. Nb5 {[%emt 0:00:30]} Qd8 {[%emt 0:07:07]} 24. Re5 {[%emt 0:02:30]} g6 {[%emt 0:08:52]} 25. Bc3 {[%emt 0:03:30]} Kg8 {[%emt 0:02:18]} 26. Bd4 {[%emt 0:11:55]} Ne4 {[%emt 0:01:38]} 27. Rxe7 {[%emt 0:05:59]} Qxe7 {[%emt 0:00:48]} 28. f5 {[%emt 0:00:06]} f6 {[%emt 0:00:08]} 29. Qg4 {[%emt 0:01:07]} Qg7 {[%emt 0:00:57]} 30. fxg6 {[%emt 0:01:39]} hxg6 {[%emt 0:00:28]} 31. c4 {[%emt 0:01:46]} dxc4 {[%emt 0:00:35]} 32. bxc4 {[%emt 0:01:04]} Rbe8 {[%emt 0:00:16]} 33. c5 {[%emt 0:00:00]} Bc6 {[%emt 0:00:27]} 34. Qh4 {[%emt 0:00:55]} Qh7 {[%emt 0:00:22]} 35. Bc4+ {[%emt 0:01:01]} Kh8 {[%emt 0:00:12]} 36. Rxf6 {[%emt 0:00:12]} Qxh4 {[%emt 0:01:09]} 37. Rxf8+ {[%emt 0:00:51]} Kh7 {[%emt 0:00:05]} 38. Bg8+ {[%emt 0:00:44]} Kh6 {[%emt 0:00:03]} 39. Be3+ {[%emt 0:00:19]} Ng5 {[%emt 0:00:06]} 0-1

[Event "World Junior U20 Girls 2018"]
[Site "Gebze"]
[Date "2018.09.10"]
[Round "6"]
[White "Nurgali, Nazerke"]
[Black "Georgescu, Lena"]
[Result "1-0"]
[ECO "E11"]
[WhiteElo "2080"]
[BlackElo "2195"]
[Annotator "NA"]
[PlyCount "77"]
[EventDate "2018.09.05"]
[EventType "swiss"]
[EventCountry "TUR"]
[SourceTitle "playchess.com"]
[Source "ChessBase"]
[SourceQuality "1"]
[TimeControl "40/5400+30:1800+30"]

1. d4 {[%emt 0:00:30]} Nf6 {[%emt 0:00:30]} 2. c4 {[%emt 0:00:30]} e6 {[%emt 0:00:00]} 3. g3 {[%emt 0:00:00]} d5 {[%emt 0:00:00]} 4. Nf3 {[%emt 0:01:00]} Bb4+ {[%emt 0:00:00]} 5. Bd2 {[%emt 0:00:00]} Be7 {[%emt 0:00:00]} 6. Bg2 {[%emt 0:01:00]} O-O {[%emt 0:00:30]} 7. O-O {[%emt 0:00:30]} c6 {[%emt 0:00:00]} 8. Qc2 {[%emt 0:00:30]} b6 {[%emt 0:00:00]} 9. Nc3 {[%emt 0:04:30] E11: Bogo-Indian} (9. Rd1 Ba6 10. b3 Nbd7 11. Bf4 Rc8 12. Nc3 Nh5 13. Bc1 f5 14. e3 Bd6 15. a4 Nhf6 16. Ne2 c5 17. Nf4 Qe7 18. cxd5 cxd4 19. Qb2 dxe3 20. Nxe6 exf2+ 21. Qxf2 {0-1 (35) Sarana,A (2613)-Jakovenko,D (2748) Satka 2018}) 9... Ba6 {[%emt 0:07:30]} 10. cxd5 {[%emt 0:05:30]} cxd5 {[%emt 0:00:30]} 11. Rfd1 $146 {[%emt 0:06:30]} ({Predecessor:} 11. Rac1 Nbd7 12. Bf4 b5 13. a4 b4 14. Nb5 Qa5 15. Ne5 Nxe5 16. dxe5 {½-½ (52) Hess,R (2639)-Mitkov,N (2527) Philadelphia 2012}) 11... Nc6 {[%emt 0:10:30]} 12. Bf4 {[%emt 0:05:30]} Bb7 {[%emt 0:10:30]} 13. Rac1 {[%emt 0:03:30]} Rc8 {[%emt 0:02:30]} 14. Ne5 {[%emt 0:06:30]} Nh5 {[%emt 0:03:30]} 15. Be3 {[%emt 0:01:30]} a6 {[%emt 0:05:30]} 16. Bf3 {[%emt 0:05:30]} Nf6 {[%emt 0:00:30]} 17. Bf4 {[%emt 0:00:30]} b5 {[%emt 0:03:30]} 18. Qd3 {[%emt 0:03:30]} Qa5 {[%emt 0:26:30]} 19. a3 {[%emt 0:03:30]} Nxe5 {[%emt 0:05:30]} 20. dxe5 $11 {[%emt 0:03:30]} Nd7 {[%emt 0:00:30]} 21. b4 {[%emt 0:03:30]} Qd8 {[%emt 0:05:35]} 22. h4 {[%emt 0:01:30]} Rc4 {[%emt 0:01:59]} 23. e4 {[%emt 0:04:30]} Nb6 {[%emt 0:03:02]} 24. exd5 {[%emt 0:01:30]} exd5 {[%emt 0:01:11]} 25. Nxd5 {[%emt 0:03:30]} Bxd5 {[%emt 0:01:34]} 26. Bxd5 {[%emt 0:00:00]} Rxc1 {[%emt 0:00:05]} 27. Bxc1 {[%emt 0:00:00]} Qxd5 {[%emt 0:01:01]} 28. Qxd5 {[%emt 0:00:30]} Nxd5 {[%emt 0:00:30]} 29. Rxd5 {[%emt 0:00:00]} Rc8 {[%emt 0:03:42]} 30. Be3 {[%emt 0:01:00]} Kf8 {[%emt 0:01:07]} 31. Rd7 {[%emt 0:02:30]} Ra8 {[%emt 0:04:26]} 32. Rb7 {[%emt 0:01:30]} Ke8 {[%emt 0:00:48]} 33. Kg2 {[%emt 0:00:30]} h5 {[%emt 0:02:04]} 34. Kf3 {[%emt 0:01:30]} Rc8 {[%emt 0:00:41]} 35. Ra7 {[%emt 0:01:30]} Rc6 {[%emt 0:00:48]} 36. Ke4 {[%emt 0:00:30]} Bd8 {[%emt 0:00:38]} 37. Kd5 {[%emt 0:01:30]} Re6 {[%emt 0:00:04]} 38. Bc5 {[%emt 0:01:30]} g6 {[%emt 0:00:21]} 39. f4 {[%emt 0:01:30]} 1-0

[Event "World Junior U20 Girls 2018"]
[Site "Gebze"]
[Date "2018.09.10"]
[Round "6"]
[White "Lingur, Zalina"]
[Black "Vujcic, Milena"]
[Result "1-0"]
[ECO "C54"]
[WhiteElo "2061"]
[BlackElo "1955"]
[Annotator "NA"]
[PlyCount "99"]
[EventDate "2018.09.05"]
[EventType "swiss"]
[EventCountry "TUR"]
[SourceTitle "playchess.com"]
[Source "ChessBase"]
[SourceQuality "1"]
[TimeControl "40/5400+30:1800+30"]

1. e4 {[%emt 0:00:30]} e5 {[%emt 0:00:30]} 2. Nf3 {[%emt 0:00:00]} Nc6 {[%emt 0:00:30]} 3. Bc4 {[%emt 0:00:00]} Bc5 {[%emt 0:00:00]} 4. c3 {[%emt 0:00:30]} Nf6 {[%emt 0:00:00]} 5. d3 {[%emt 0:00:00]} d6 {[%emt 0:00:30]} 6. O-O {[%emt 0:00:00]} O-O {[%emt 0:00:00]} 7. a4 {[%emt 0:00:30]} a6 {[%emt 0:01:00]} 8. Nbd2 {[%emt 0:01:30] C54: Giuoco Piano: 4 c3 Nf6, main lines with 5 d4 and 5 d3} Ba7 {[%emt 0:03:30]} 9. Bb3 {[%emt 0:02:30]} Ne7 {[%emt 0:00:30]} 10. h3 {[%emt 0:00:30]} Ng6 {[%emt 0:00:00]} 11. Re1 {[%emt 0:00:30]} h6 {[%emt 0:01:00]} 12. Nf1 {[%emt 0:00:30]} c6 {[%emt 0:02:30]} 13. Ng3 {[%emt 0:04:30]} d5 {[%emt 0:03:30]} 14. exd5 {[%emt 0:04:30]} Nxd5 {[%emt 0:00:30]} 15. d4 {[%emt 0:06:30]} exd4 {[%emt 0:00:30]} 16. Nxd4 {[%emt 0:00:30] [#]} Kh8 $146 {[%emt 0:03:30]} ({Predecessor:} 16... Bb6 17. Bc4 Rb8 18. Qc2 Bxd4 19. cxd4 {½-½ (41) Svidler,P (2745)-Jakovenko,D (2714) Novosibirsk 2016}) 17. a5 {[%emt 0:26:30]} Bb8 {[%emt 0:25:30]} 18. Ndf5 {[%emt 0:12:30]} Be6 {[%emt 0:13:30]} 19. Qd4 {[%emt 0:11:30]} Bxf5 {[%emt 0:10:30]} 20. Nxf5 {[%emt 0:01:30]} Qf6 {[%emt 0:00:30]} 21. Qxf6 {[%emt 0:04:30]} Nxf6 {[%emt 0:00:30]} 22. Be3 {[%emt 0:01:53]} Ba7 $18 {[%emt 0:11:30]} 23. Bxa7 {[%emt 0:01:57]} Rxa7 {[%emt 0:00:00]} 24. Rad1 {[%emt 0:01:59]} Raa8 {[%emt 0:04:50]} 25. Nd6 {[%emt 0:01:10]} Kg8 {[%emt 0:00:45]} 26. Rd4 {[%emt 0:08:20]} c5 {[%emt 0:04:47]} 27. Rdd1 {[%emt 0:04:51]} Rab8 {[%emt 0:00:46]} 28. Nc4 {[%emt 0:00:25]} Rfd8 {[%emt 0:00:00]} 29. g3 {[%emt 0:00:25]} Kf8 {[%emt 0:04:19]} 30. Kg2 {[%emt 0:03:26]} Ne7 {[%emt 0:03:16]} 31. Ne5 {[%emt 0:00:29]} Nfd5 {[%emt 0:00:56]} 32. Bc4 {[%emt 0:00:49]} b5 {[%emt 0:02:21]} 33. Bxd5 {[%emt 0:00:18]} Nxd5 {[%emt 0:00:53]} 34. Nc6 {[%emt 0:00:01]} Rbc8 {[%emt 0:00:23]} 35. Nxd8 {[%emt 0:00:30]} Rxd8 {[%emt 0:00:00]} 36. b3 {[%emt 0:01:15]} Rd7 {[%emt 0:00:26]} 37. c4 {[%emt 0:00:13]} bxc4 {[%emt 0:00:10]} 38. bxc4 {[%emt 0:00:30]} Nf6 {[%emt 0:00:00]} 39. Rxd7 {[%emt 0:00:09]} Nxd7 {[%emt 0:00:00]} 40. f4 {[%emt 0:00:00]} Nb8 {[%emt 0:00:00]} 41. Re5 {[%emt 0:04:20]} Nd7 {[%emt 0:01:38]} 42. Rd5 {[%emt 0:00:30]} Ke7 {[%emt 0:00:30]} 43. Kf3 {[%emt 0:00:30]} g6 {[%emt 0:02:30]} 44. g4 {[%emt 0:00:30]} Ke6 {[%emt 0:00:30]} 45. f5+ {[%emt 0:04:30]} Ke7 {[%emt 0:00:30]} 46. fxg6 {[%emt 0:01:30]} fxg6 {[%emt 0:00:30]} 47. h4 {[%emt 0:00:30]} Ke6 {[%emt 0:00:00]} 48. Kf4 {[%emt 0:01:30]} Nf6 {[%emt 0:01:00]} 49. Rxc5 {[%emt 0:00:30]} Kd6 {[%emt 0:00:30]} 50. Rc8 {[%emt 0:00:30]} 1-0